[Event "69th RUS-ch Women Higher League 2019"]
[Site "Yaroslavl"]
[Date "2019.06.30"]
[Round "4.21"]
[White "Yakushina, Ekaterina"]
[Black "Lysenko, Margarita"]
[Result "0-1"]
[ECO "A62"]
[WhiteElo "1783"]
[BlackElo "2224"]
[Annotator "NA"]
[PlyCount "138"]
[EventDate "2019.06.27"]
[EventType "swiss"]
[EventCountry "RUS"]
[SourceTitle "playchess.com"]
[Source "ChessBase"]
[SourceQuality "1"]
[TimeControl "40/5400+30:1800+30"]

1. d4 {[%emt 0:00:13]} Nf6 {[%emt 0:00:00]} 2. c4 {[%emt 0:00:31]} e6 {[%emt 0:00:00]} 3. g3 {[%emt 0:00:25]} c5 {[%emt 0:00:00]} 4. d5 {[%emt 0:02:43]} exd5 {[%emt 0:01:23]} 5. cxd5 {[%emt 0:00:11]} d6 {[%emt 0:00:05]} 6. Nc3 {[%emt 0:01:01]} g6 {[%emt 0:00:07]} 7. Nf3 {[%emt 0:00:30]} Bg7 {[%emt 0:00:10]} 8. Bg2 {[%emt 0:00:15]} O-O {[%emt 0:00:12]} 9. O-O {[%emt 0:00:24]} Re8 {[%emt 0:00:09]} 10. Bf4 {[%emt 0:04:13]} Bf5 {[%emt 0:00:17]} 11. Nd2 {[%emt 0:03:39]} Nh5 {[%emt 0:02:04]} 12. e4 {[%emt 0:05:03]} Nxf4 {[%emt 0:00:08]} 13. gxf4 {[%emt 0:00:28]} Bd7 {[%emt 0:00:41]} 14. Nc4 {[%emt 0:05:39]} Bxc3 {[%emt 0:00:41]} 15. bxc3 {[%emt 0:00:31]} Bb5 {[%emt 0:00:08]} 16. Qb3 {[%emt 0:05:50]} Bxc4 {[%emt 0:00:09]} 17. Qxc4 {[%emt 0:00:07]} Nd7 {[%emt 0:00:28]} 18. Rab1 {[%emt 0:14:46]} b6 {[%emt 0:01:49]} 19. Qd3 {[%emt 0:08:12]} c4 {[%emt 0:04:13]} 20. Qxc4 {[%emt 0:09:46]} Qh4 {[%emt 0:02:59]} 21. Qc6 {[%emt 0:07:13]} Nf6 {[%emt 0:01:07]} 22. Qxd6 {[%emt 0:03:10]} Nxe4 {[%emt 0:08:22]} 23. Bxe4 {[%emt 0:13:30]} Rxe4 {[%emt 0:00:46]} 24. Rb4 {[%emt 0:00:07]} Rxb4 {[%emt 0:35:41]} 25. Qxb4 {[%emt 0:01:53]} Qg4+ {[%emt 0:00:19]} 26. Kh1 {[%emt 0:00:28]} Qf3+ {[%emt 0:00:08]} 27. Kg1 {[%emt 0:00:05]} Qxd5 {[%emt 0:00:15]} 28. a4 {[%emt 0:06:01]} Re8 {[%emt 0:03:59]} 29. Qb5 {[%emt 0:01:28]} Qe6 {[%emt 0:05:42]} 30. Qd3 {[%emt 0:01:10]} Rc8 {[%emt 0:01:11]} 31. Qa6 {[%emt 0:03:20]} Rc5 {[%emt 0:10:07]} 32. Qxa7 {[%emt 0:01:11]} Qg4+ {[%emt 0:00:32]} 33. Kh1 {[%emt 0:00:06]} Qf3+ {[%emt 0:01:22]} 34. Kg1 {[%emt 0:00:06]} Qxf4 {[%emt 0:00:22]} 35. Qa8+ {[%emt 0:00:37]} Kg7 {[%emt 0:00:08]} 36. Kh1 {[%emt 0:00:39]} Rxc3 {[%emt 0:00:57]} 37. Qd5 {[%emt 0:00:44]} Rh3 {[%emt 0:01:12]} 38. Qg2 {[%emt 0:00:25]} Ra3 {[%emt 0:00:26]} 39. Qc6 {[%emt 0:00:48]} Rxa4 {[%emt 0:00:43]} 40. Qc3+ {[%emt 0:00:00]} Qd4 {[%emt 0:00:00]} 41. Qb3 {[%emt 0:06:27]} Rb4 {[%emt 0:01:59]} 42. Qg3 {[%emt 0:00:09]} h5 {[%emt 0:09:05]} 43. Re1 {[%emt 0:01:46]} Rb2 {[%emt 0:01:02]} 44. Kg2 {[%emt 0:00:48]} Qg4 {[%emt 0:06:04]} 45. Qxg4 {[%emt 0:00:50]} hxg4 {[%emt 0:00:07]} 46. Re7 {[%emt 0:00:07]} Kf6 {[%emt 0:00:23]} 47. Rb7 {[%emt 0:00:05]} Ke6 {[%emt 0:00:24]} 48. Kg3 {[%emt 0:05:19]} f5 {[%emt 0:01:03]} 49. Rg7 {[%emt 0:00:24]} Kf6 {[%emt 0:00:08]} 50. Rb7 {[%emt 0:00:06]} Kg5 {[%emt 0:00:21]} 51. Rh7 {[%emt 0:05:51]} Rb1 {[%emt 0:03:21]} 52. f4+ {[%emt 0:00:37]} Kf6 {[%emt 0:04:05]} 53. Rb7 {[%emt 0:00:47]} Rb3+ {[%emt 0:00:13]} 54. Kg2 {[%emt 0:00:08]} g5 {[%emt 0:00:09]} 55. fxg5+ {[%emt 0:01:06]} Kxg5 {[%emt 0:00:40]} 56. Rd7 {[%emt 0:00:34]} Rb2+ {[%emt 0:00:16]} 57. Kg1 {[%emt 0:00:14]} b5 {[%emt 0:00:30]} 58. Rd4 {[%emt 0:00:35]} Kf6 {[%emt 0:00:50]} 59. Rd8 {[%emt 0:00:10]} Ke5 {[%emt 0:00:16]} 60. Re8+ {[%emt 0:00:21]} Kf4 {[%emt 0:00:26]} 61. Rf8 {[%emt 0:00:26]} b4 {[%emt 0:00:18]} 62. Rc8 {[%emt 0:00:34]} Kf3 {[%emt 0:02:52]} 63. Rc1 {[%emt 0:00:11]} f4 {[%emt 0:01:27]} 64. Rd1 {[%emt 0:00:12]} b3 {[%emt 0:00:32]} 65. Rd3+ {[%emt 0:00:05]} Ke2 {[%emt 0:00:59]} 66. Rd8 {[%emt 0:00:12]} Rb1+ {[%emt 0:00:13]} 67. Kg2 {[%emt 0:00:03]} f3+ {[%emt 0:00:06]} 68. Kg3 {[%emt 0:00:03]} Rg1+ {[%emt 0:00:06]} 69. Kf4 {[%emt 0:00:16]} f2 {[%emt 0:00:09]} 0-1

[Event "69th RUS-ch Women Higher League 2019"]
[Site "Yaroslavl"]
[Date "2019.06.30"]
[Round "4.22"]
[White "Khokhlova, Daria"]
[Black "Shaydullina, Sandugach"]
[Result "1-0"]
[ECO "D20"]
[WhiteElo "2234"]
[BlackElo "2128"]
[Annotator "NA"]
[PlyCount "126"]
[EventDate "2019.06.27"]
[EventType "swiss"]
[EventCountry "RUS"]
[SourceTitle "playchess.com"]
[Source "ChessBase"]
[SourceQuality "1"]
[TimeControl "40/5400+30:1800+30"]

1. d4 {[%emt 0:00:00]} d5 {[%emt 0:00:00]} 2. c4 {[%emt 0:00:00]} dxc4 {[%emt 0:00:13]} 3. e3 {[%emt 0:06:01]} e5 {[%emt 0:00:16]} 4. Bxc4 {[%emt 0:00:21]} exd4 {[%emt 0:00:06]} 5. exd4 {[%emt 0:00:47]} Bb4+ {[%emt 0:00:53]} 6. Nc3 {[%emt 0:02:07]} Qe7+ {[%emt 0:00:09]} 7. Nge2 {[%emt 0:01:38]} Nf6 {[%emt 0:00:16]} 8. O-O {[%emt 0:02:25]} O-O {[%emt 0:00:13]} 9. Bg5 {[%emt 0:03:45]} c6 {[%emt 0:00:12]} 10. Qc2 {[%emt 0:04:07]} Nbd7 {[%emt 0:07:00]} 11. Ng3 {[%emt 0:03:28]} Nb6 {[%emt 0:00:22]} 12. Bd3 {[%emt 0:00:46]} h6 {[%emt 0:00:06]} 13. Bd2 {[%emt 0:03:41]} Qd8 {[%emt 0:03:14]} 14. Nce2 {[%emt 0:03:36]} Nbd5 {[%emt 0:01:16]} 15. a3 {[%emt 0:02:40]} Bxd2 {[%emt 0:02:32]} 16. Qxd2 {[%emt 0:00:01]} Be6 {[%emt 0:01:01]} 17. Bc2 {[%emt 0:03:15]} Qb6 {[%emt 0:00:38]} 18. Kh1 {[%emt 0:04:34]} Rad8 {[%emt 0:01:09]} 19. b4 {[%emt 0:01:42]} Rfe8 {[%emt 0:01:11]} 20. h3 {[%emt 0:02:26]} Re7 {[%emt 0:01:32]} 21. Ng1 {[%emt 0:04:13]} Nc7 {[%emt 0:01:18]} 22. Nf3 {[%emt 0:02:07]} Nb5 {[%emt 0:00:40]} 23. Rfd1 {[%emt 0:04:03]} Bd5 {[%emt 0:06:00]} 24. Nf5 {[%emt 0:03:13]} Re6 {[%emt 0:00:05]} 25. Qf4 {[%emt 0:04:04]} Nd6 {[%emt 0:02:15]} 26. Ne5 {[%emt 0:01:39]} Nxf5 {[%emt 0:01:16]} 27. Qxf5 {[%emt 0:02:18]} Red6 {[%emt 0:00:56]} 28. Ng4 {[%emt 0:03:33]} Nxg4 {[%emt 0:00:50]} 29. Qh7+ {[%emt 0:00:53]} Kf8 {[%emt 0:00:04]} 30. hxg4 {[%emt 0:01:58]} Be6 {[%emt 0:09:57]} 31. Qh8+ {[%emt 0:01:39]} Ke7 {[%emt 0:00:05]} 32. Qxg7 {[%emt 0:00:06]} Rxd4 {[%emt 0:00:14]} 33. Re1 {[%emt 0:01:47]} Rf4 {[%emt 0:04:11]} 34. Bf5 {[%emt 0:04:48]} Rd6 {[%emt 0:04:45]} 35. Bxe6 {[%emt 0:00:57]} Qxf2 {[%emt 0:01:10]} 36. Bf5+ {[%emt 0:03:32]} Kd8 {[%emt 0:00:08]} 37. Qf8+ {[%emt 0:00:40]} Kc7 {[%emt 0:00:03]} 38. Qe7+ {[%emt 0:00:13]} Kb6 {[%emt 0:00:39]} 39. Qe3+ {[%emt 0:00:19]} Qxe3 {[%emt 0:00:15]} 40. Rxe3 {[%emt 0:00:00]} h5 {[%emt 0:00:00]} 41. Rf3 {[%emt 0:01:37]} Rxf3 {[%emt 0:02:48]} 42. gxf3 {[%emt 0:00:05]} hxg4 {[%emt 0:00:02]} 43. fxg4 {[%emt 0:02:22]} Kb5 {[%emt 0:00:04]} 44. Kg2 {[%emt 0:03:17]} Kc4 {[%emt 0:00:14]} 45. Rf1 {[%emt 0:03:52]} f6 {[%emt 0:00:15]} 46. Kg3 {[%emt 0:01:12]} Kb3 {[%emt 0:00:37]} 47. Rf3+ {[%emt 0:02:04]} Kb2 {[%emt 0:00:05]} 48. a4 {[%emt 0:06:07]} b6 {[%emt 0:00:40]} 49. Rd3 {[%emt 0:01:29]} Rxd3+ {[%emt 0:04:18]} 50. Bxd3 {[%emt 0:00:01]} Kb3 {[%emt 0:00:29]} 51. Kf4 {[%emt 0:01:25]} Kxb4 {[%emt 0:01:05]} 52. Kf5 {[%emt 0:00:18]} Kc3 {[%emt 0:00:30]} 53. Bf1 {[%emt 0:00:47]} a5 {[%emt 0:07:08]} 54. Kxf6 {[%emt 0:00:47]} Kb4 {[%emt 0:04:03]} 55. g5 {[%emt 0:00:08]} Kxa4 {[%emt 0:00:47]} 56. g6 {[%emt 0:00:08]} b5 {[%emt 0:00:08]} 57. g7 {[%emt 0:00:06]} c5 {[%emt 0:00:06]} 58. g8=Q {[%emt 0:00:06]} c4 {[%emt 0:00:05]} 59. Bxc4 {[%emt 0:00:16]} Kb4 {[%emt 0:02:11]} 60. Bxb5 {[%emt 0:00:08]} Kxb5 {[%emt 0:00:10]} 61. Qa2 {[%emt 0:00:06]} Kb4 {[%emt 0:00:09]} 62. Ke5 {[%emt 0:00:20]} a4 {[%emt 0:00:07]} 63. Kd4 {[%emt 0:00:03]} a3 {[%emt 0:00:05]} 1-0

[Event "69th RUS-ch Women Higher League 2019"]
[Site "Yaroslavl"]
[Date "2019.06.30"]
[Round "4.23"]
[White "Mokshanova, Elizaveta"]
[Black "Matveeva, Olga"]
[Result "1/2-1/2"]
[ECO "B13"]
[WhiteElo "2020"]
[BlackElo "2189"]
[Annotator "NA"]
[PlyCount "95"]
[EventDate "2019.06.27"]
[EventType "swiss"]
[EventCountry "RUS"]
[SourceTitle "playchess.com"]
[Source "ChessBase"]
[SourceQuality "1"]
[TimeControl "40/5400+30:1800+30"]

1. e4 {[%emt 0:00:00]} c6 {[%emt 0:00:00]} 2. d4 {[%emt 0:00:00]} d5 {[%emt 0:00:00]} 3. exd5 {[%emt 0:00:00]} cxd5 {[%emt 0:00:00]} 4. c4 {[%emt 0:00:00]} Nf6 {[%emt 0:00:00]} 5. Nc3 {[%emt 0:00:00]} Nc6 {[%emt 0:00:00]} 6. Be3 {[%emt 0:05:07]} e6 {[%emt 0:04:19]} 7. Nf3 {[%emt 0:00:59]} Be7 {[%emt 0:00:13]} 8. c5 {[%emt 0:06:15]} O-O {[%emt 0:01:05]} 9. Bd3 {[%emt 0:04:41]} b6 {[%emt 0:10:04]} 10. cxb6 {[%emt 0:03:52]} Qxb6 {[%emt 0:01:03]} 11. O-O {[%emt 0:07:11]} Ba6 {[%emt 0:20:18]} 12. a3 {[%emt 0:08:26]} Bxd3 {[%emt 0:05:19]} 13. Qxd3 {[%emt 0:00:05]} a5 {[%emt 0:01:02]} 14. Na4 {[%emt 0:01:48]} Qb8 {[%emt 0:08:47]} 15. Rac1 {[%emt 0:02:41]} Rc8 {[%emt 0:00:28]} 16. Rc3 {[%emt 0:02:05]} Nd7 {[%emt 0:04:39]} 17. Rfc1 {[%emt 0:01:05]} Na7 {[%emt 0:00:17]} 18. g3 {[%emt 0:01:17]} Qb7 {[%emt 0:11:19]} 19. Bf4 {[%emt 0:02:09]} Rxc3 {[%emt 0:03:44]} 20. Rxc3 {[%emt 0:00:13]} Rc8 {[%emt 0:01:54]} 21. Ne5 {[%emt 0:07:01]} Nxe5 {[%emt 0:02:42]} 22. Bxe5 {[%emt 0:00:06]} h6 {[%emt 0:05:34]} 23. Rb3 {[%emt 0:09:43]} Qc6 {[%emt 0:03:03]} 24. Nb6 {[%emt 0:03:58]} Qc1+ {[%emt 0:01:30]} 25. Kg2 {[%emt 0:00:07]} Rc6 {[%emt 0:07:57]} 26. Na4 {[%emt 0:10:46]} Nc8 {[%emt 0:04:37]} 27. Nc3 {[%emt 0:00:29]} f6 {[%emt 0:01:30]} 28. Bf4 {[%emt 0:00:19]} Qe1 {[%emt 0:00:33]} 29. Bd2 {[%emt 0:02:41]} Qa1 {[%emt 0:00:09]} 30. Qb5 {[%emt 0:00:24]} Rc4 {[%emt 0:00:47]} 31. Nxd5 {[%emt 0:04:27]} Rxd4 {[%emt 0:01:26]} 32. Nxe7+ {[%emt 0:00:05]} Nxe7 {[%emt 0:00:30]} 33. Qe8+ {[%emt 0:01:28]} Kh7 {[%emt 0:00:03]} 34. Qxe7 {[%emt 0:00:05]} Qb1 {[%emt 0:00:17]} 35. Bf4 {[%emt 0:05:15]} Qe4+ {[%emt 0:00:18]} 36. Rf3 {[%emt 0:00:18]} Rd3 {[%emt 0:01:12]} 37. Be3 {[%emt 0:00:04]} f5 {[%emt 0:00:35]} 38. Qc7 {[%emt 0:02:41]} a4 {[%emt 0:00:20]} 39. h4 {[%emt 0:00:47]} Rb3 {[%emt 0:00:31]} 40. Qf4 Qc6 {[%emt 0:00:00]} 41. Bd4 {[%emt 0:03:11]} g5 {[%emt 0:02:09]} 42. Qe5 {[%emt 0:09:12]} Qxf3+ {[%emt 0:00:08]} 43. Kh2 {[%emt 0:00:10]} Rb7 {[%emt 0:01:32]} 44. Qh8+ {[%emt 0:00:12]} Kg6 {[%emt 0:00:03]} 45. Qf6+ {[%emt 0:00:12]} Kh7 {[%emt 0:04:20]} 46. Qh8+ {[%emt 0:02:39]} Kg6 {[%emt 0:00:04]} 47. Qe8+ {[%emt 0:00:53]} Kh7 {[%emt 0:00:40]} 48. Qh8+ {[%emt 0:09:05]} 1/2-1/2

[Event "69th RUS-ch Women Higher League 2019"]
[Site "Yaroslavl"]
[Date "2019.06.30"]
[Round "4.24"]
[White "Filippova, Darya"]
[Black "Kabanova, Ekaterina"]
[Result "0-1"]
[ECO "A25"]
[WhiteElo "2174"]
[BlackElo "2099"]
[Annotator "NA"]
[PlyCount "54"]
[EventDate "2019.06.27"]
[EventType "swiss"]
[EventCountry "RUS"]
[SourceTitle "playchess.com"]
[Source "ChessBase"]
[SourceQuality "1"]
[TimeControl "40/5400+30:1800+30"]

1. c4 {[%emt 0:00:00]} e5 {[%emt 0:00:00]} 2. Nc3 {[%emt 0:00:57]} Nc6 {[%emt 0:01:00]} 3. g3 {[%emt 0:03:11]} Bc5 {[%emt 0:01:25]} 4. Bg2 {[%emt 0:00:29]} a6 {[%emt 0:00:09]} 5. e3 {[%emt 0:01:52]} d6 {[%emt 0:00:19]} 6. Nge2 {[%emt 0:00:53]} Ba7 {[%emt 0:00:11]} 7. O-O {[%emt 0:05:39]} h5 {[%emt 0:02:18]} 8. Nd5 {[%emt 0:09:16]} h4 {[%emt 0:00:56]} 9. b4 {[%emt 0:04:40]} Nf6 {[%emt 0:02:06]} 10. d4 {[%emt 0:11:54]} hxg3 {[%emt 0:09:02]} 11. fxg3 {[%emt 0:01:52]} Bg4 {[%emt 0:01:20]} 12. Qe1 {[%emt 0:09:54]} Nxd5 {[%emt 0:05:03]} 13. Bxd5 {[%emt 0:04:09]} f5 {[%emt 0:03:39]} 14. b5 {[%emt 0:07:30]} axb5 {[%emt 0:01:14]} 15. cxb5 {[%emt 0:00:07]} Ne7 {[%emt 0:02:51]} 16. Bf3 {[%emt 0:02:39]} Bh3 {[%emt 0:01:49]} 17. Rf2 {[%emt 0:00:33]} g5 {[%emt 0:01:59]} 18. a4 {[%emt 0:04:28]} e4 {[%emt 0:09:51]} 19. Bg2 {[%emt 0:00:19]} Bxg2 {[%emt 0:00:46]} 20. Kxg2 {[%emt 0:00:38]} Qd7 {[%emt 0:00:12]} 21. Ra3 {[%emt 0:05:09]} O-O-O {[%emt 0:01:20]} 22. Nc3 {[%emt 0:04:30]} d5 {[%emt 0:01:49]} 23. a5 {[%emt 0:01:39]} f4 {[%emt 0:00:21]} 24. exf4 {[%emt 0:05:06]} Bxd4 {[%emt 0:11:35]} 25. Kh1 {[%emt 0:01:21]} Qg4 {[%emt 0:05:05]} 26. Qe2 {[%emt 0:01:21]} Qxg3 {[%emt 0:00:44]} 27. Nxe4 {[%emt 0:04:48]} Rxh2+ {[%emt 0:00:26]} 0-1

[Event "69th RUS-ch Women Higher League 2019"]
[Site "Yaroslavl"]
[Date "2019.07.01"]
[Round "5.1"]
[White "Tomilova, Elena"]
[Black "Shafigullina, Zarina"]
[Result "1/2-1/2"]
[ECO "A05"]
[WhiteElo "2289"]
[BlackElo "2240"]
[Annotator "NA"]
[PlyCount "80"]
[EventDate "2019.06.27"]
[EventType "swiss"]
[EventCountry "RUS"]
[SourceTitle "playchess.com"]
[Source "ChessBase"]
[SourceQuality "1"]
[TimeControl "40/5400+30:1800+30"]

1. Nf3 {[%emt 0:00:00]} Nf6 {[%emt 0:00:00]} 2. c4 {[%emt 0:00:00]} b6 {[%emt 0:00:37]} 3. g3 {[%emt 0:00:00]} Bb7 {[%emt 0:00:12]} 4. Bg2 {[%emt 0:00:00]} c5 {[%emt 0:00:45]} 5. O-O {[%emt 0:00:07]} e6 {[%emt 0:00:22]} 6. b3 {[%emt 0:00:31]} d5 {[%emt 0:04:20]} 7. cxd5 {[%emt 0:00:32]} exd5 {[%emt 0:09:22]} 8. d4 {[%emt 0:01:17]} Nbd7 {[%emt 0:00:14]} 9. Bb2 {[%emt 0:01:17]} g6 {[%emt 0:04:17]} 10. Nc3 {[%emt 0:08:08]} Bg7 {[%emt 0:02:12]} 11. Rc1 {[%emt 0:00:26]} O-O {[%emt 0:02:02]} 12. dxc5 {[%emt 0:04:55]} bxc5 {[%emt 0:12:41]} 13. Na4 {[%emt 0:01:33]} Rc8 {[%emt 0:12:52]} 14. Ne1 {[%emt 0:15:43]} Qe7 {[%emt 0:10:11]} 15. Nd3 {[%emt 0:04:28]} Rfe8 {[%emt 0:11:06]} 16. Re1 {[%emt 0:00:29]} c4 {[%emt 0:00:16]} 17. Nf4 {[%emt 0:06:33]} Qb4 {[%emt 0:18:28]} 18. e3 {[%emt 0:19:29]} Red8 {[%emt 0:06:17]} 19. Bd4 {[%emt 0:03:46]} Bc6 {[%emt 0:00:40]} 20. Nc3 {[%emt 0:02:39]} Nb6 {[%emt 0:00:59]} 21. Rb1 {[%emt 0:01:46]} Qe7 {[%emt 0:00:34]} 22. h4 {[%emt 0:03:59]} h5 {[%emt 0:00:57]} 23. b4 {[%emt 0:03:39]} Ne4 {[%emt 0:00:25]} 24. Bxg7 {[%emt 0:00:36]} Kxg7 {[%emt 0:00:04]} 25. Qc2 {[%emt 0:04:01]} Nxc3 {[%emt 0:01:16]} 26. Qxc3+ {[%emt 0:00:02]} Qf6 {[%emt 0:00:05]} 27. Ne2 {[%emt 0:04:42]} Qxc3 {[%emt 0:00:05]} 28. Nxc3 {[%emt 0:00:01]} Na4 {[%emt 0:01:48]} 29. Rec1 {[%emt 0:00:53]} a6 {[%emt 0:00:44]} 30. Nxa4 {[%emt 0:03:16]} Bxa4 {[%emt 0:00:04]} 31. Rc3 {[%emt 0:00:05]} Rc7 {[%emt 0:00:49]} 32. Bf1 {[%emt 0:00:32]} Bb5 {[%emt 0:00:38]} 33. Rd1 {[%emt 0:00:12]} Kf6 {[%emt 0:00:14]} 34. Rd4 {[%emt 0:02:00]} Rcd7 {[%emt 0:00:37]} 35. Bg2 {[%emt 0:01:14]} Ke5 {[%emt 0:00:20]} 36. Rc2 {[%emt 0:02:54]} Ba4 {[%emt 0:00:29]} 37. Rc3 {[%emt 0:00:04]} Bb5 {[%emt 0:00:12]} 38. Rc2 {[%emt 0:00:07]} Ba4 {[%emt 0:00:46]} 39. Rc3 {[%emt 0:00:05]} Bb5 {[%emt 0:00:12]} 40. Rc2 {[%emt 0:00:00]} Ba4 {[%emt 0:00:00]} 1/2-1/2

[Event "69th RUS-ch Women Higher League 2019"]
[Site "Yaroslavl"]
[Date "2019.07.01"]
[Round "5.2"]
[White "Bodnaruk, Anastasia"]
[Black "Charochkina, Daria"]
[Result "0-1"]
[ECO "B12"]
[WhiteElo "2440"]
[BlackElo "2338"]
[Annotator "NA"]
[PlyCount "120"]
[EventDate "2019.06.27"]
[EventType "swiss"]
[EventCountry "RUS"]
[SourceTitle "playchess.com"]
[Source "ChessBase"]
[SourceQuality "1"]
[TimeControl "40/5400+30:1800+30"]

1. e4 {[%emt 0:00:00]} c6 {[%emt 0:00:00]} 2. d4 {[%emt 0:00:00]} d5 {[%emt 0:00:00]} 3. e5 {[%emt 0:00:00]} Bf5 {[%emt 0:00:00]} 4. Nf3 {[%emt 0:00:00]} e6 {[%emt 0:00:06]} 5. Be2 {[%emt 0:00:13]} Nd7 {[%emt 0:00:12]} 6. O-O {[%emt 0:00:14]} Ne7 {[%emt 0:00:13]} 7. c3 {[%emt 0:04:36]} h6 {[%emt 0:00:06]} 8. Na3 {[%emt 0:04:49]} Bg6 {[%emt 0:04:10]} 9. Nc2 {[%emt 0:04:41]} Nf5 {[%emt 0:00:20]} 10. a4 {[%emt 0:07:24]} a5 {[%emt 0:00:29]} 11. Nce1 {[%emt 0:02:57]} Be7 {[%emt 0:09:35]} 12. g4 {[%emt 0:16:45]} Nh4 {[%emt 0:00:13]} 13. Nxh4 {[%emt 0:00:04]} Bxh4 {[%emt 0:00:06]} 14. Ng2 {[%emt 0:03:50]} O-O {[%emt 0:36:53]} 15. f4 {[%emt 0:07:17]} Be4 {[%emt 0:09:09]} 16. Bd3 {[%emt 0:11:42]} f5 {[%emt 0:00:42]} 17. Bxe4 {[%emt 0:08:13]} fxe4 {[%emt 0:00:24]} 18. g5 {[%emt 0:01:09]} hxg5 {[%emt 0:00:30]} 19. Qg4 {[%emt 0:04:24]} Qe7 {[%emt 0:01:45]} 20. Bd2 {[%emt 0:01:53]} Qf7 {[%emt 0:07:57]} 21. fxg5 {[%emt 0:02:32]} Bf2+ {[%emt 0:00:09]} 22. Kh1 {[%emt 0:00:01]} Qf5 {[%emt 0:01:16]} 23. Qxf5 {[%emt 0:08:59]} Rxf5 {[%emt 0:00:07]} 24. Bf4 {[%emt 0:00:14]} e3 {[%emt 0:00:10]} 25. Bxe3 {[%emt 0:00:18]} Raf8 {[%emt 0:00:04]} 26. h4 {[%emt 0:07:41]} c5 {[%emt 0:02:08]} 27. b3 {[%emt 0:01:19]} Rf3 {[%emt 0:02:59]} 28. Bxf2 {[%emt 0:00:30]} Rxf2 {[%emt 0:00:05]} 29. Kg1 {[%emt 0:01:51]} Rc2 {[%emt 0:06:23]} 30. Rxf8+ {[%emt 0:00:48]} Nxf8 {[%emt 0:00:04]} 31. dxc5 {[%emt 0:00:30]} Rxc3 {[%emt 0:00:49]} 32. Rb1 {[%emt 0:00:30]} Nd7 {[%emt 0:01:45]} 33. b4 {[%emt 0:00:04]} axb4 {[%emt 0:00:03]} 34. Rxb4 {[%emt 0:00:02]} Nxc5 {[%emt 0:00:15]} 35. h5 {[%emt 0:01:26]} Rc4 {[%emt 0:02:42]} 36. Rb6 {[%emt 0:00:29]} Rxa4 {[%emt 0:03:53]} 37. Rd6 {[%emt 0:00:23]} Ra8 {[%emt 0:00:24]} 38. Nf4 {[%emt 0:00:38]} Kf7 {[%emt 0:00:20]} 39. Rb6 {[%emt 0:00:31]} Ra4 {[%emt 0:04:26]} 40. g6+ {[%emt 0:00:00]} Ke7 {[%emt 0:00:00]} 41. Ng2 {[%emt 0:13:37]} Ra1+ {[%emt 0:04:54]} 42. Kf2 {[%emt 0:02:15]} Nd3+ {[%emt 0:06:09]} 43. Kg3 {[%emt 0:03:36]} Nxe5 {[%emt 0:02:57]} 44. Nf4 {[%emt 0:00:25]} Ra6 {[%emt 0:00:32]} 45. Rxb7+ {[%emt 0:00:18]} Kf6 {[%emt 0:00:03]} 46. Rb8 {[%emt 0:05:45]} Kg5 {[%emt 0:01:59]} 47. Rf8 {[%emt 0:03:43]} d4 {[%emt 0:07:34]} 48. Rf7 {[%emt 0:03:05]} Kh6 {[%emt 0:01:45]} 49. Rf8 {[%emt 0:01:10]} Kg5 {[%emt 0:02:29]} 50. Rf7 {[%emt 0:00:00]} d3 {[%emt 0:01:13]} 51. Kf2 {[%emt 0:01:15]} d2 {[%emt 0:02:42]} 52. Ke2 {[%emt 0:00:12]} Rd6 {[%emt 0:01:01]} 53. Kd1 {[%emt 0:00:48]} Nc4 {[%emt 0:01:05]} 54. Nh3+ {[%emt 0:00:42]} Kxh5 {[%emt 0:01:14]} 55. Nf2 {[%emt 0:00:12]} Kxg6 {[%emt 0:00:21]} 56. Rb7 {[%emt 0:01:19]} Ne3+ {[%emt 0:00:29]} 57. Ke2 {[%emt 0:00:01]} d1=Q+ {[%emt 0:00:19]} 58. Nxd1 {[%emt 0:00:01]} Nxd1 {[%emt 0:00:04]} 59. Rb3 {[%emt 0:00:11]} Kf5 {[%emt 0:01:23]} 60. Rf3+ {[%emt 0:00:37]} Kg4 {[%emt 0:00:20]} 0-1